Cogmind - Beta 14 @@@ ROGUE MODE // 2024.12.07 @ 23:19:04 Player: Duduxx Result: Destroyed by G-34 Mercenary with Small Laser Performance ------------- Evolutions (1) 500 Regions Visited (3) 600 Robots Destroyed (33) 165 Value Destroyed (677) 677 Prototype IDs (1) 20 Alien Tech Used (0) 0 Bonus (0) 0 TOTAL SCORE: 1962 Bonus ------- None Cogmind --------- Core Integrity 0/400 Matter 250/300 Energy 20/265 System Corruption 0% Temperature Cool (6) Movement Core (50) Location -9/Storage Parts ------- > --- POWER (1) -------- Improved Ion Engine > --- PROPULSION (3) --- (None) > --- UTILITY (3) ------ Heat Sink Gravity Neutralizer Structural Scanner > --- WEAPON (2) ------- (None) > --- INVENTORY (5) ---- Large Storage Unit Peak State ------------ > --- POWER ------------ Ion Engine > --- PROPULSION ------- Light Treads Light Treads > --- UTILITY ---------- Improved Heat Sink Small Storage Unit Improved Targeting Computer > --- WEAPON ----------- Medium Laser Particle Cannon > --- INVENTORY -------- Light Ion Engine Large Storage Unit Structural Scanner [Rating: 12] Favorites ----------- Power Ion Engine Engine Ion Engine Propulsion Light Treads Treads Light Treads Utility Small Storage Unit Device Structural Scanner Storage Small Storage Unit Processor Improved Targeting Computer Protection Light Armor Plating Weapon Medium Laser Energy Gun Medium Laser Energy Cannon Beam Cannon Launcher Grenade Launcher Build | -11 -10 -9 -9 ------- Run | Yrd Mat Mat Sto Slots Evolved 2 | . . 2 . Power . | . . . . Propulsion 1 | . . 1 . Utility 1 | . . 1 . Weapon . | . . . . Parts Attached 33 | 6 5 7 15 Power 5 | 1 . . 4 Engine 5 | 1 . . 4 Core . | . . . . Reactor . | . . . . Propulsion 4 | 2 . . 2 Treads 4 | 2 . . 2 Leg . | . . . . Wheel . | . . . . Hover . | . . . . Flight . | . . . . Utility 15 | 1 3 5 6 Device 6 | . 1 1 4 Storage 5 | 1 1 1 2 Processor 1 | . . 1 . Hackware . | . . . . Protection 3 | . 1 2 . Artifact . | . . . . Weapon 9 | 2 2 2 3 Energy Gun 5 | 2 . 1 2 Energy Cannon 3 | . 1 1 1 Ballistic Gun . | . . . . Ballistic Cannon . | . . . . Launcher 1 | . 1 . . Special Weapon . | . . . . Impact Weapon . | . . . . Slashing Weapon . | . . . . Piercing Weapon . | . . . . Special Melee Weapon . | . . . . Unidentified Prototypes 1 | . . . 1 Parts Lost 11 | . . 5 6 Power 1 | . . . 1 Propulsion 4 | . . 2 2 Utility 2 | . . 2 . Weapon 4 | . . 1 3 Highest Loss Streak 5 | . . 3 5 To Critical Strikes 1 | . . . 1 Average Slot Usage (%) 78 | . 98 67 56 Engine 9 | . 14 8 5 Treads 18 | . 28 13 8 Device 8 | . 5 8 11 Storage 11 | . 14 11 9 Processor 3 | . . 2 9 Protection 4 | . 7 7 . Energy Gun 6 | . 8 1 8 Energy Cannon 5 | . 5 7 4 Launcher 7 | . 13 5 . Peak Build Rating 12 | 6 7 9 12 Average Rating 7 | 4 6 6 8 On Entrance 4 | . 6 7 4 Naked Turns 33 | . . . 33 Heaviest Build 35 | 13 34 35 17 Greatest Support 40 | 40 40 40 40 Greatest Overweight (x) 3 | . . 1 3 Average Overweight (x) . | . . . . Largest Inventory Capacity 15 | 8 15 15 15 Average Capacity 10 | 6 13 13 7 Most Carried 8 | 1 7 8 7 Average Carried 4 | . 4 5 4 Final Capacity 15 | 8 15 8 5 Final Carried 8 | 1 6 8 1 Class Distribution -------------------- 100% | Mutant Dominant Class ---------------- Mutant | -10/Materials Mutant | -9/Materials Mutant | -9/Storage Resources | -11 -10 -9 -9 ----------- Run | Yrd Mat Mat Sto Matter Collected 535 | 122 137 118 158 Remotely . | . . . . Salvage Created 941 | . 216 226 499 Parts 63 | . 28 13 22 Haulers Intercepted . | . . . . Recyclers Shooed 1 | . . . 1 Parts Field Recycled . | . . . . Retrieved Matter . | . . . . Parts Self-Destructed . | . . . . Prevented . | . . . . Kills | -11 -10 -9 -9 ------- Run | Yrd Mat Mat Sto Combat Hostiles Destroyed 24 | . 8 7 9 Melee 1 | . . . 1 Guns 4 | . . 1 3 Cannons 11 | . 1 5 5 AOE 8 | . 7 1 . Classes Destroyed 8 | . 6 . 2 Builder 1 | . 1 . . Tunneler 1 | . 1 . . Recycler 3 | . 1 . 2 Operator 1 | . . . 1 Watcher 3 | . 2 1 . Swarmer 12 | . 6 3 3 Grunt 10 | . 2 4 4 Sentry 2 | . . . 2 Best Kill Streak 9 | . 9 6 3 Combat Bots Only 6 | . 6 5 3 Max Kills in Single Turn 4 | . 4 1 1 Gunslinging . | . . . . Exploded 3 | . 3 1 . Melee 1 | . . . 1 Uniques/NPCs Destroyed . | . . . . Combat | -11 -10 -9 -9 -------- Run | Yrd Mat Mat Sto Hostile Shots Fired 172 | . 15 67 90 Missed 31 | . 7 7 17 Damage Taken 1687 | . 181 747 759 Core 419 | . 16 178 225 Absorbed by Shields . | . . . . Core Remaining (%) 96 | 100 93 . . Volleys Fired 61 | . 10 22 29 Largest 2 | . 2 2 2 Hottest 118 | . 90 118 118 Shots Fired 101 | . 17 28 56 Gun 50 | . 5 5 40 Cannon 42 | . 4 22 16 Launcher 9 | . 8 1 . Special . | . . . . Kinetic . | . . . . Thermal 92 | . 9 27 56 Explosive 9 | . 8 1 . Electromagnetic . | . . . . Robot Hit Streak 8 | . 3 8 8 Robot Miss Streak 3 | . 3 2 2 Penetration Max . | . . . . Secondary Targets . | . . . . Shots Hit Robots 67 | . 9 17 41 Core Hits 50 | . 17 12 21 Critical Kills . | . . . . Critical Parts Destroyed . | . . . . Critical Strikes 3 | . 1 . 2 Burn 3 | . 1 . 2 Melee Attacks . | . . . . Impact . | . . . . Slashing . | . . . . Piercing . | . . . . Sneak Attacks . | . . . . Combat Hostiles . | . . . . Follow-up Attacks . | . . . . Damage Inflicted 1665 | . 618 401 646 Guns 453 | . 37 52 364 Cannons 578 | . 53 258 267 Explosions 617 | . 528 89 . Melee . | . . . . Ramming 17 | . . 2 15 Kinetic . | . . . . Thermal 1031 | . 90 310 631 Explosive 617 | . 528 89 . Electromagnetic . | . . . . Impact . | . . . . Slashing . | . . . . Piercing . | . . . . Highest Corruption . | . . . . Average Corruption . | . . . . Corruption Purged . | . . . . Corruption Blocked . | . . . . Overload Shots . | . . . . Overflow Damage 1 | . . . 1 Projectiles 1 | . . . 1 Explosions . | . . . . Melee . | . . . . Knockbacks . | . . . . Impact . | . . . . Kinetic . | . . . . Secondary . | . . . . Self-Inflicted Damage 57 | . 56 1 . Shots 2 | . 2 . . Rammed 7 | . . 1 6 Targets Rammed 7 | . . 1 6 Kicked . | . . . . Crushed . | . . . . Highest Temperature 456 | . 110 456 72 Average Temperature 115 | . 33 200 23 Received Heat Transfer 591 | . 30 294 267 Effects 7 | . . 7 . Shutdowns 1 | . . 1 . Energy Bleed 1 | . . 1 . Interference 3 | . . 3 . Short Circuit 1 | . . 1 . Damage (minor) 1 | . . 1 . Siege Activations . | . . . . Robots Corrupted . | . . . . Combat Hostiles . | . . . . Parts Fried . | . . . . Impact Corruptions . | . . . . Robots Melted . | . . . . Combat Hostiles . | . . . . Parts Melted 6 | . 1 1 4 Heat Transferred 2664 | . 296 666 1702 Parts Sabotaged . | . . . . Parts Stolen . | . . . . Parts Stripped . | . . . . Power Chain Reactions . | . . . . Alert | -11 -10 -9 -9 ------- Run | Yrd Mat Mat Sto Peak Influence 387 | . 297 271 387 Initial 114 | . . 63 114 Average 172 | . 144 145 261 Maximum Alert Level 1 | . 1 1 1 Low Security (%) 60 | 100 70 71 34 Level 1 39 | . 29 28 65 Level 2 . | . . . . Level 3 . | . . . . Level 4 . | . . . . Level 5 . | . . . . High Security . | . . . . Max Security . | . . . . Squads Dispatched 6 | . 2 3 1 Investigation 1 | . 1 . . Extermination . | . . . . Reinforcement 5 | . 1 3 1 Assault . | . . . . Garrison . | . . . . Intercept . | . . . . Searches Triggered . | . . . . Construction Impeded 1 | . . 1 . Haulers Reinforced . | . . . . Active Scanning Responses . | . . . . Cargo Convoy Interrupts . | . . . . Stealth | -11 -10 -9 -9 --------- Run | Yrd Mat Mat Sto Distress Signals 5 | . 2 3 . Communications Jammed . | . . . . Distress Signals . | . . . . Times Spotted 43 | . 13 16 14 Peak Tracking Total 8 | . 4 8 4 Tactical Retreats 1 | . . 1 . Traps | -11 -10 -9 -9 ------- Run | Yrd Mat Mat Sto Traps Triggered 3 | . 2 . 1 Indirectly . | . . . . Trap Hack Attempts . | . . . . Triggered . | . . . . Disarmed . | . . . . Reprogrammed . | . . . . Reused . | . . . . Traps Extracted . | . . . . Installed . | . . . . Triggered . | . . . . Machines | -11 -10 -9 -9 ---------- Run | Yrd Mat Mat Sto Machines Disabled 2 | . 2 . . Max in Single Turn 1 | . 1 . . Machines Repaired . | . . . . Machines Dismantled . | . . . . Machines Sabotaged . | . . . . Overloaded Fab Kills . | . . . . Hacking | -11 -10 -9 -9 --------- Run | Yrd Mat Mat Sto Machines Accessed 4 | . 1 . 3 Terminals 4 | . 1 . 3 Fabricators . | . . . . Repair Stations . | . . . . Recycling Units . | . . . . Scanalyzers . | . . . . Garrison Access . | . . . . Total Hacks 9 | . 5 . 4 Successful 4 | . 2 . 2 Failed 5 | . 3 . 2 Catastrophic 1 | . . . 1 Database Lockouts . | . . . . Manual 4 | . 4 . . Terminals 9 | . 5 . 4 Fabricators . | . . . . Repair Stations . | . . . . Recycling Units . | . . . . Scanalyzers . | . . . . Garrison Access . | . . . . Terminal Hacks 4 | . 2 . 2 Record 2 | . 2 . . Open Door 2 | . . . 2 Fabricator Hacks . | . . . . Repair Station Hacks . | . . . . Recycling Unit Hacks . | . . . . Scanalyzer . | . . . . Garrison Access Hacks . | . . . . Unauthorized Hacks . | . . . . Terminals . | . . . . Fabricators . | . . . . Repair Stations . | . . . . Recycling Units . | . . . . Scanalyzers . | . . . . Garrison Access . | . . . . Data Cores Recovered . | . . . . Used . | . . . . Hacking Detections 3 | . 1 . 2 Full Trace Events 1 | . . . 1 Feedback Events . | . . . . Feedback Blocked . | . . . . Robot Schematics Acquired . | . . . . Robots Built . | . . . . Authchips . | . . . . Time . | . . . . Total Robot Build Rating . | . . . . Part Schematics Acquired . | . . . . Parts Built . | . . . . Authchips . | . . . . Time . | . . . . Total Part Build Rating . | . . . . Parts Repaired . | . . . . Time . | . . . . Parts Recycled . | . . . . Recycled Matter . | . . . . Retrieved Matter . | . . . . Retrieved Components . | . . . . Parts Scanalyzed . | . . . . Part Schematics Acquired . | . . . . Parts Damaged . | . . . . Bothacking | -11 -10 -9 -9 ------------ Run | Yrd Mat Mat Sto Used RIF Installer . | . . . . Robots Hacked . | . . . . Non-combat . | . . . . Combat . | . . . . Robot Hacks Applied . | . . . . Relay Couplers Released . | . . . . Fabnet Peak Effective % . | . . . . Robots Rewired . | . . . . Allies Hacked . | . . . . Hacks Repelled . | . . . . Allies | -11 -10 -9 -9 -------- Run | Yrd Mat Mat Sto Total Allies . | . . . . Largest Group . | . . . . Highest-Rated Group . | . . . . Highest-Rated Ally . | . . . . Total Orders . | . . . . Ally Attacks . | . . . . Total Damage . | . . . . Kills . | . . . . Allies Corrupted . | . . . . Allies Melted . | . . . . Intel | -11 -10 -9 -9 ------- Run | Yrd Mat Mat Sto Robot Analysis Total . | . . . . Derelict Logs Recovered . | . . . . Drone Launches . | . . . . Drone Recoveries . | . . . . Exploration | -11 -10 -9 -9 ------------- Run | Yrd Mat Mat Sto Turns Passed 1141 | 70 506 207 358 Spaces Moved 644 | 40 292 98 214 Core 199 | 3 . 45 151 Treads 445 | 37 292 53 63 Legs . | . . . . Wheels . | . . . . Hover . | . . . . Flight . | . . . . Fastest Speed 50 | 50 160 100 50 Average Speed 139 | 151 160 144 107 Slowest Speed 240 | 160 160 240 200 Overloaded Moves . | . . . . Propulsion Burnouts . | . . . . Robots Hopped . | . . . . Cave-ins Triggered . | . . . . Exploration Rate (%) 28 | 3 54 13 42 Regions Visited 3 Branch Regions 1 Pre-discovered Areas . | . . . . Known Exits Taken . | . . . . Unknown Exits Taken 3 | 1 1 1 . Scrap Searched . | . . . . Spaces Dug . | . . . . Terrain Destroyed 54 | . 48 6 . Melee . | . . . . Projectile . | . . . . AOE 54 | . 48 6 . Terrain Rammed . | . . . . Walls Destroyed . | . . . . Machines Disabled . | . . . . Actions | -11 -10 -9 -9 --------- Run | Yrd Mat Mat Sto Total 777 | 46 314 137 280 Wait 14 | . . 1 13 Move 642 | 39 291 98 214 Hop . | . . . . Pick Up 8 | 1 3 2 2 Fast Attach 14 | 6 4 1 3 Attach 15 | . . 5 10 Detach 10 | . 3 6 1 Swap 4 | . 1 1 2 Drop 3 | . 2 1 . Fire 61 | . 10 22 29 Melee . | . . . . Ram . | . . . . Kick . | . . . . Crush 6 | . . . 6 Escape Stasis . | . . . . Rewire . | . . . . Trap . | . . . . Miscellaneous . | . . . . Route ------- -11/Scrapyard -10/Materials -9/Materials -9/Storage History --------- Turn | Location | Event 4 | -11/Scrapyard | Discovered new exit (range 16) 71 | -11/Scrapyard | Entered Materials 310 | -10/Materials | Build established: Mutant 563 | -10/Materials | Discovered new exit (range 10) 577 | -10/Materials | Entered another Materials area 577 | -9/Materials | Evolved 2 slots: Propulsion x1, Utility x1 711 | -9/Materials | Lost 3 parts (1n1u1w) 780 | -9/Materials | Discovered new exit (range 5) 784 | -9/Materials | Entered Storage 917 | -9/Storage | Core integrity fell below 50% 1076 | -9/Storage | Core integrity fell below 20% 1089 | -9/Storage | Released all parts (4) 1116 | -9/Storage | Lost 5 parts (1p2n2w) 1142 | -9/Storage | Destroyed by G-34 Mercenary with Small Laser Last Messages --------------- 01074_ S-10 Pest destroyed. 01078_ R-06 Scavenger inserts Lgt. Ion Engine into recycling unit. 01079_ Ion Engine destroyed. 01081_ R-06 Scavenger collects Flight Unit. 01081_ R-06 Scavenger inserts Flight Unit into recycling unit. 01085_ Recycling unit begins recycling process. 01085_ Lgt. Treads destroyed. 01089_ Released Imp. Heat Sink. 01089_ Released Imp. Targeting Computer. 01089_ Released Sml. Storage Unit. 01089_ Released Lgt. Ion Engine. 01092_ R-06 Scavenger collects Imp. Heat Sink. 01096_ R-06 Scavenger collects Lgt. Ion Engine. 01121_ Connecting with Door Terminal... >>Open(Door) Sealed Heavy Doors opened. 01122_ Acquired Prototype Device. 01122_ Identified Gravity Neutralizer. Map ----- +----------------------------------------------------+ | ?#""" # ### #########?????? | | ?#""" # #?# + #??? | | ?# # #?# ## """""?????? | | ?########## #?# ## "?????????? | | ??#########%### ## "?????????? | | # """""" #??? | | # #??? | | """ """ """ + #??? | | """ """ "Y" # #??? | | """ """ " " ############??? | | """ """^ #T#???????????? | | """ """ + "???????????? | | ###???????????? | | %%#?????????????? | | %#?????????????? | | #########/##%%#?????????????? | | # *!##% #?????????????? | | # ## #?????????????? | | # ## #?????????????? | | # ## T########?????? | | + ## #########?????? | | """ # #""""## ##?????? | | """ # #????## ##?????? | | """ # #????## ##?????? | | ###########????## ##?????? | | #??????????????## @ ##?????? | | #################g ##?????? | | g ##?????? | | ##+###########+#########+####?????? | | ??????? ? ####T ####?????? | | ??? ???## #????????? | | #?# #???# #????????? | | #?# #???###????????? | | ########?###########??????????????? | | | | | | | | | | | | | | | | | | | | | | | | | | | | | | | | | +----------------------------------------------------+ Best States ------------- Heat Dissipation 42 Energy Generation 12 Energy Capacity 265 Matter Stores 300 Matter Capacity 300 Sight Range 16 Terrain Scan Density 10 Additional Mass Support 12 Armor Coverage 150 Evasion (%) 50 Targeting Accuracy 6 Recoil Reduction 2 Item Schematics ----------------- None Robot Schematics ------------------ None Fabricated ------------ Nothing Alien Tech Used ----------------- None Achievements -------------- None Challenges ------------ None Game ------ Seed CatalystWaveShifter Manual? 0 Play Time 00:13:08 Cumulative 73.9 hours Start 2024.12.07 @ 22:18:21 End 2024.12.07 @ 23:19:04 Sessions 1 Manual Loads 0 Difficulty Rogue Special Mode None Game No. 150 Rogue 150 Adventurer 0 Explorer 0 Win Type - Total 0 Types 0/0/0/0/0/0/0/0/0 Lore% 22 Gallery% 40 Achievement% 33 Wizard Run 0 Options --------- Layout 1 ASCII 0 Keyboard 1 Movement Arrows Keybinds 0 Fullscreen 1 Font 24/Smallcaps Map View 50x35 Zoom Use 0% Tactical HUD 1 Map Filters NONE Filters NONE Steam 1 RUN: 835afa0c-709c-481d-8191-5401280043ef